bitfinex/quotes_ETHUSD_20240621
["timestamp","ask_amount","ask_price","bid_price","bid_amount"]
[1718982377633,2.3628,3518.9,3518.5,2.27369]
[1718982377843,2.27333,3519.1,3518.6,2.27359]
[1718982377973,2.27333,3519.1,3518.6,2.33517857]
[1718982378172,2.767857,3519.1,3518.6,2.33517857]
[1718982378369,2.27337,3519.0,3518.6,0.06160857]
[1718982378590,2.27343,3519.0,3518.6,0.06160857]
[1718982378795,2.27343,3519.0,3518.3,2.27381]
[1718982378796,2.27355,3518.8,3518.4,2.27375]
[1718982379007,2.27338,3519.0,3518.7,0.06160464]
[1718982379204,3.0,3519.0,3518.7,2.2735]
[1718982379381,3.0,3519.2,3518.8,0.0616007]
[1718982379713,3.0,3519.3,3518.8,0.0616007]
[1718982379935,2.27343,3518.9,3518.5,2.27369]
[1718982380228,4.71,3519.6,3518.9,2.27342]
[1718982380229,3.0,3519.6,3518.9,2.27342]
[1718982380383,2.27307,3519.5,3518.9,2.27342]
[1718982380585,5.27302,3519.6,3519.1,2.27324]
[1718982380788,5.27301,3519.6,3519.0,2.33495283]
[1718982381003,2.27312,3519.4,3519.2,0.06158497]
[1718982381204,2.27312,3519.4,3519.1,0.0615889]
[1718982381407,2.27312,3519.4,3519.3,0.06158103]
[1718982381614,2.27312,3519.4,3519.2,0.06158497]
[1718982381918,5.27301,3519.6,3518.6,2.27362]
[1718982381919,2.27332,3519.1,3518.6,2.27362]
[1718982382121,2.27332,3519.1,3518.3,2.27379]
[1718982382122,2.2735,3518.9,3518.3,2.27379]
[1718982382327,2.27332,3519.1,3518.4,2.27375]
[1718982382328,2.27354,3518.8,3518.4,2.27375]
[1718982382534,2.27344,3518.9,3518.4,2.27375]
[1718982382691,2.27344,3518.9,3518.5,2.27367]
[1718982384043,2.2735,3518.8,3518.0,2.27398]
[1718982384329,2.27363,3518.6,3518.0,2.27398]
[1718982384537,2.27369,3518.5,3517.8,2.27408]
[1718982384860,2.27378,3518.4,3517.8,2.27412]
[1718982385039,2.27415,3517.8,3517.3,2.27447]
[1718982385414,2.27415,3517.8,3517.3,4.54894]
[1718982385611,2.27391,3518.2,3517.4,2.2744]
[1718982385920,2.27402,3518.0,3517.6,2.27427]
[1718982386130,2.27395,3518.1,3517.6,2.27427]
[1718982386131,2.27408,3517.9,3517.6,2.27427]
[1718982386512,2.27408,3517.9,3517.5,2.27433]
[1718982386732,2.27408,3517.9,3517.1,2.27459]
[1718982386733,2.27416,3517.8,3517.4,2.27438]
[1718982386910,2.27433,3517.6,3517.2,2.27453]
[1718982387111,2.27427,3517.6,3516.8,2.27479]
[1718982387347,2.27427,3517.6,3516.5,2.4709]
[1718982387348,2.27441,3517.4,3516.9,2.27471]
[1718982388722,2.27441,3517.4,3516.5,2.4709]
[1718982388723,2.27441,3517.4,3516.5,2.42046]
[1718982388928,2.27431,3517.6,3516.7,2.27482]
[1718982389119,2.27461,3517.1,3516.7,2.27482]
[1718982389618,2.2745,3517.3,3516.9,2.2747]
[1718982389840,2.27441,3517.4,3517.0,2.27464]
[1718982390045,2.2744,3517.5,3517.0,2.27463]
[1718982390442,2.2744,3517.5,3516.6,2.2749]
[1718982390443,2.27544,3515.8,3515.3,2.2757]
[1718982390670,4.5494,3517.0,3514.7,2.27613]
[1718982390671,2.27476,3516.9,3514.7,2.27613]
[1718982390880,2.27506,3516.4,3515.8,2.27544]
[1718982391150,2.27506,3516.4,3515.9,0.05732379]
[1718982391371,2.27506,3516.4,3515.6,2.27557]
[1718982391572,2.27506,3516.4,3515.7,0.51245667]
[1718982391737,2.27515,3516.3,3515.8,2.27543]
[1718982391942,2.27515,3516.3,3515.9,0.05732379]
[1718982392245,2.27506,3516.4,3515.7,2.730625]
[1718982392246,2.27518,3516.2,3515.7,2.730625]
[1718982392445,2.27518,3516.2,3516.0,0.05731985]
[1718982392651,2.27518,3516.2,3515.7,2.730625]
[1718982392652,2.27524,3516.1,3515.7,2.730625]
[1718982393242,2.27524,3516.1,3515.7,0.455125]
[1718982393680,2.2751,3516.4,3515.8,0.5006315]
[1718982393887,2.27492,3516.6,3516.2,2.27517]
[1718982394208,2.27499,3516.5,3516.0,2.27525]
[1718982394358,4.5499,3516.6,3516.0,2.78039415]
[1718982394703,2.2747,3517.0,3516.1,2.27524]
[1718982394876,2.27495,3516.6,3516.1,2.27524]
[1718982395076,2.27495,3516.6,3516.1,2.83087856]
[1718982395288,2.27483,3516.8,3516.1,0.55563856]
[1718982395480,2.27508,3516.4,3515.9,2.27537]
[1718982395796,2.27483,3516.8,3515.9,2.27537]
[1718982395797,2.27497,3516.6,3515.9,2.27537]
[1718982395996,2.27504,3516.5,3516.0,2.2753]
[1718982396170,2.27504,3516.5,3516.1,2.27523]
[1718982396376,2.27492,3516.6,3516.2,2.27517]
[1718982396759,3.0,3517.3,3516.1,2.27523]
[1718982396965,2.2749,3516.7,3516.3,2.27509]
[1718982397407,3.0,3517.0,3516.1,2.27518]
[1718982397408,2.27493,3516.6,3516.1,2.27518]
[1718982397572,2.27493,3516.6,3516.1,2.27524]
[1718982398823,2.275,3516.5,3516.1,2.27524]
[1718982399864,3.0,3517.0,3515.8,2.27543]
[1718982399865,2.27518,3516.3,3515.8,2.27543]
[1718982400100,2.27492,3516.6,3515.8,2.27543]
[1718982400303,2.27517,3516.3,3515.8,2.27543]
[1718982400864,2.27518,3516.2,3515.6,2.27551]
[1718982401119,2.27518,3516.2,3515.6,2.27556]
[1718982401405,2.27512,3516.3,3515.8,2.27544]
[1718982401567,2.27518,3516.2,3515.9,2.27536]
[1718982401767,2.27524,3516.1,3516.0,0.05613095]
[1718982402015,2.27524,3516.1,3515.6,2.27554]
[1718982402318,2.27524,3516.1,3516.0,0.05613095]
[1718982402512,2.27524,3516.1,3515.6,2.27554]
[1718982402714,2.27518,3516.2,3515.5,2.27562]
[1718982402715,2.27531,3516.0,3515.5,2.27562]
[1718982403215,2.2754,3515.9,3515.5,2.27562]
[1718982403399,2.27537,3516.0,3515.3,2.3948]
[1718982403578,2.27511,3516.4,3515.7,2.2755]
[1718982403579,2.2753,3516.1,3515.7,2.2755]
[1718982404523,2.27502,3516.5,3515.7,2.27544]
[1718982404685,2.27502,3516.5,3516.0,2.2753]
[1718982405101,5.27493,3516.6,3516.2,2.27517]
[1718982405330,2.27501,3516.5,3516.1,2.27523]
[1718982405499,2.27506,3516.4,3515.9,2.27537]
[1718982405845,4.55017,3516.4,3515.9,2.27537]
[1718982406032,2.27512,3516.3,3515.9,2.27537]
[1718982406337,2.27531,3516.0,3515.6,2.27553]
[1718982406495,2.27526,3516.1,3515.6,2.27553]
[1718982406698,2.27526,3516.1,3515.6,2.27556]
[1718982406910,2.27512,3516.3,3515.7,0.05430591]
[1718982407830,2.27525,3516.1,3515.7,2.32979591]
[1718982408329,2.27532,3516.0,3515.7,0.05430591]
[1718982408697,2.27537,3515.9,3515.7,0.05430591]
[1718982409132,2.27537,3515.9,3515.5,2.27562]
[1718982409341,2.27537,3515.9,3515.8,0.052555]
[1718982409547,2.27537,3515.9,3513.3,5.72286043]
[1718982409548,2.27554,3515.7,3515.1,2.27589]
[1718982409833,2.27554,3515.7,3515.3,2.27576]
[1718982410034,2.27545,3515.8,3515.2,2.27582]
[1718982410339,2.27564,3515.5,3515.1,2.27584]
[1718982410643,2.27544,3515.8,3515.1,2.27584]
[1718982410933,2.27557,3515.6,3515.3,2.27576]
[1718982411443,2.27527,3516.1,3514.9,2.3162]
[1718982411444,2.27527,3516.1,3515.4,2.73085]
[1718982411605,2.27543,3515.9,3515.6,2.27557]
[1718982411794,2.27543,3515.9,3515.4,4.55133]
[1718982412001,2.27543,3515.9,3515.5,2.27559]
[1718982412213,3.0,3516.2,3514.9,2.27601]
[1718982412214,2.27562,3515.6,3514.9,2.27601]
[1718982412461,5.101,3516.2,3514.6,2.27618]
[1718982412462,2.27547,3515.8,3514.6,2.27618]
[1718982412748,2.27573,3515.4,3515.1,2.27589]
[1718982413110,2.27573,3515.4,3515.0,2.2759]
[1718982413343,2.27565,3515.5,3515.1,2.27584]
[1718982413752,2.27547,3515.8,3514.7,2.674708]
[1718982413753,2.27595,3515.1,3514.7,2.674758]
[1718982414351,2.27596,3515.0,3514.7,2.674758]
[1718982414661,2.27591,3515.1,3514.7,2.674758]
[1718982414845,2.27591,3515.1,3514.7,2.27614]
[1718982415065,2.27591,3515.1,3514.8,0.04765394]
[1718982415581,2.27591,3515.1,3514.9,0.04764999]
[1718982415738,2.3095,3515.2,3514.3,2.84]
[1718982415939,2.3095,3515.2,3513.6,2.3666]
[1718982415940,2.27621,3514.7,3514.4,0.04766971]
[1718982416194,2.27608,3514.9,3514.4,2.27629]
[1718982416375,2.27597,3515.0,3514.5,0.04608859]
[1718982416672,2.27609,3514.8,3514.4,2.27629]
[1718982416884,2.27609,3514.8,3514.6,0.04608465]
[1718982417052,2.27596,3515.0,3514.5,0.04608859]
[1718982417236,5.27577,3515.3,3514.7,2.3221807]
[1718982417438,2.27564,3515.5,3515.0,2.27594]
[1718982417670,2.27558,3515.6,3514.8,2.32210676]
[1718982417880,2.27588,3515.2,3515.1,0.04606493]
[1718982418085,2.27597,3515.0,3514.6,2.27621]
[1718982418235,2.27588,3515.2,3514.6,2.27621]
[1718982418236,2.2759,3515.1,3514.7,2.27613]
[1718982418567,2.2759,3515.1,3514.6,2.27621]
[1718982418568,2.27596,3515.0,3514.6,2.27618]
[1718982418766,2.27584,3515.2,3514.7,2.27614]
[1718982419143,3.0,3515.4,3514.8,2.27608]
[1718982419144,2.27591,3515.1,3514.8,2.27608]
[1718982419472,2.27591,3515.1,3514.7,2.27615]
[1718982419833,2.27583,3515.2,3514.8,2.27603]
[1718982420360,4.4288,3515.7,3514.8,2.27603]
[1718982420361,2.27539,3515.9,3514.8,0.682839]
[1718982420584,2.27539,3515.9,3515.5,2.27562]
[1718982421170,2.27555,3515.7,3515.3,2.27572]
[1718982421803,2.2755,3515.8,3515.5,2.27563]
[1718982421957,2.2755,3515.8,3514.8,0.682839]
[1718982421958,3.0,3516.0,3515.7,2.2755]
[1718982422296,3.0,3516.3,3514.8,0.682839]
[1718982422462,3.0,3516.3,3514.7,0.29431875]
[1718982422463,2.27506,3516.4,3516.0,2.27529]
[1718982422875,2.27493,3516.6,3516.2,2.27518]
[1718982423291,2.27493,3516.6,3516.3,0.04647685]
[1718982423664,2.4462,3516.9,3516.3,0.04647685]
[1718982423665,2.4462,3516.9,3516.5,2.27498]
[1718982423863,3.0,3517.0,3516.5,2.27492]
[1718982424102,2.27467,3517.0,3516.6,2.32137503]
[1718982424666,2.27467,3517.0,3516.6,2.27491]
[1718982425130,2.101,3517.2,3516.1,2.27524]
[1718982425269,2.101,3517.2,3516.2,2.27515]
[1718982425270,2.27493,3516.6,3516.2,2.27515]
[1718982426106,2.27493,3516.6,3515.9,2.27534]
[1718982426276,2.27493,3516.6,3515.7,2.27547]
[1718982426277,2.27521,3516.2,3515.7,2.27547]
[1718982426488,2.27545,3515.8,3515.2,2.27582]
[1718982426673,2.27525,3516.1,3515.5,2.27563]
[1718982426674,2.27526,3516.1,3515.5,2.27563]
[1718982426983,2.27532,3516.0,3515.3,2.2757]
[1718982427168,2.27525,3516.1,3515.7,2.27549]
[1718982427812,5.101,3516.4,3516.0,2.2753]
[1718982427969,3.0,3516.3,3516.0,2.2753]
[1718982428171,2.27537,3515.9,3515.3,2.2757]
[1718982428722,2.27558,3515.6,3515.2,2.27582]
[1718982428918,2.27551,3515.7,3515.3,2.27575]
[1718982429413,1.94551,3515.7,3515.3,2.27575]
[1718982429973,1.94551,3515.7,3515.0,2.27589]
[1718982430307,1.94551,3515.7,3514.7,0.29431875]
[1718982430308,2.27582,3515.3,3514.7,2.27609]
[1718982430527,2.27583,3515.2,3514.8,2.27603]
[1718982430802,2.27563,3515.5,3515.1,2.27588]
[1718982431022,2.140061,3515.7,3515.3,2.27576]
[1718982431023,1.94551,3515.7,3515.3,2.27576]
[1718982431305,2.27541,3515.9,3514.7,2.27613]
[1718982431306,2.27541,3515.9,3515.1,2.27585]
[1718982431512,12.67524,3516.1,3515.8,2.27543]
[1718982431719,0.74233519,3516.0,3515.8,2.27543]
[1718982432006,6.84762,3516.6,3516.0,2.27524]
[1718982432007,2.27506,3516.4,3516.0,2.27524]
[1718982432212,2.3636,3517.2,3516.1,2.27519]
[1718982432213,0.74218427,3516.3,3516.1,2.27519]
[1718982432366,2.27486,3516.7,3516.1,2.32167471]
[1718982432570,2.27518,3516.3,3516.1,0.04648471]
[1718982432771,0.74228746,3516.2,3515.9,2.27536]
[1718982432971,0.74228746,3516.2,3516.1,4.55048]
[1718982433286,5.27484,3516.8,3516.1,4.55048]
[1718982433287,2.27487,3516.7,3516.1,3.00876921]
[1718982433491,0.74220226,3516.6,3516.3,2.2751]
[1718982433675,0.74220226,3516.5,3516.4,2.27505]
[1718982433875,0.74220226,3516.7,3516.4,2.32129328]
[1718982434209,0.74220226,3516.6,3516.5,4.54996]
[1718982434396,0.74221702,3516.6,3516.5,2.27498]
[1718982434607,3.0,3517.0,3516.6,2.27492]
[1718982434777,2.2746,3517.1,3516.6,2.27492]
[1718982434778,0.74225275,3516.9,3516.6,2.27492]
[1718982434977,0.74225275,3516.8,3516.7,4.5497]
[1718982435202,2.27448,3517.3,3516.7,4.5497]
[1718982435203,3.0,3517.2,3516.9,2.27473]
[1718982435408,3.0,3517.3,3517.0,0.04616309]
[1718982435713,0.74219083,3517.2,3516.9,2.27472]
[1718982435873,3.74219083,3517.2,3516.9,2.27472]
[1718982436079,0.74219083,3517.1,3517.0,0.04616309]
[1718982437016,3.01679083,3517.1,3517.0,0.04616309]
[1718982437203,6.01679083,3517.1,3517.0,0.04616309]
[1718982437528,0.74219083,3517.1,3517.0,2.32082309]
[1718982437807,3.01660083,3517.4,3517.0,2.27466]
[1718982437972,0.74219083,3517.3,3517.2,2.27453]
[1718982438376,9.48390256,3517.8,3517.2,2.27453]
[1718982438377,3.74226984,3517.6,3517.3,2.27446]
[1718982438609,0.74228805,3517.5,3517.4,2.27435]
[1718982438832,0.74228805,3517.5,3517.2,2.27453]
[1718982439007,0.74228805,3517.4,3517.2,2.27453]
[1718982439211,3.0,3517.7,3517.3,0.04600825]
[1718982439401,4.22883278,3518.2,3517.4,2.2744]
[1718982439402,0.74227529,3517.6,3517.4,2.2744]
[1718982439608,0.74227529,3517.5,3517.4,2.2744]
[1718982439895,3.0,3517.9,3517.5,2.2743]
[1718982440105,3.01646032,3517.8,3516.9,2.27472]
[1718982440304,3.0,3518.1,3517.2,2.27451]
[1718982440305,2.27428,3517.6,3517.2,2.27451]
[1718982440519,2.27428,3517.6,3517.3,2.27446]
[1718982440717,2.27422,3517.7,3517.4,2.2744]
[1718982440939,0.74236945,3517.6,3517.4,2.2744]
[1718982442100,3.0,3517.8,3517.7,2.27421]
[1718982442419,0.74232283,3517.8,3517.7,2.27421]
[1718982442619,3.74231121,3518.0,3517.8,2.27413]
[1718982442822,0.74230958,3517.9,3517.8,2.27413]
[1718982443025,3.74225628,3518.0,3517.9,2.27408]
[1718982443230,3.0,3518.3,3517.9,2.27408]
[1718982443398,2.27396,3518.1,3517.7,2.2742]
[1718982443598,3.0,3518.1,3517.8,2.27413]
[1718982444112,3.0,3518.3,3517.8,2.27413]
[1718982444334,0.74220806,3518.2,3517.9,2.27407]
[1718982444542,2.27377,3518.4,3518.0,2.27396]
[1718982444838,0.74229795,3518.3,3518.0,2.27396]
[1718982445072,3.74229795,3518.3,3518.1,0.04517843]
[1718982445261,3.0,3518.3,3518.1,0.04517843]
[1718982445536,2.27382,3518.3,3518.1,0.04517843]
[1718982446045,2.27382,3518.3,3518.2,0.0451745]
[1718982446260,3.0161886,3518.3,3517.9,2.27407]
[1718982446482,3.0,3518.2,3517.9,2.27407]
[1718982446693,2.27382,3518.3,3517.9,2.27407]
[1718982447975,2.27389,3518.2,3517.1,2.27454]
[1718982448189,2.27405,3518.0,3517.5,2.27427]
[1718982448333,2.27405,3518.0,3517.6,2.27426]
[1718982448537,5.27405,3518.0,3517.6,2.27426]
[1718982449335,2.2741,3517.9,3517.6,2.27426]
[1718982449576,3.0,3518.0,3517.4,2.2744]
[1718982449775,2.27402,3518.0,3517.5,2.27433]
[1718982450566,2.27409,3517.9,3517.5,2.27433]
[1718982451236,3.0,3518.5,3517.5,2.27433]
[1718982451437,2.27404,3518.0,3517.5,2.27433]
[1718982451684,5.27404,3518.0,3517.5,2.27433]
[1718982451849,2.27409,3517.9,3517.6,0.04222126]
[1718982452245,2.27421,3517.8,3517.6,0.04222126]
[1718982452608,2.27408,3517.9,3517.5,2.27428]
[1718982452746,2.27408,3517.9,3517.7,0.04221732]
[1718982452955,2.27416,3517.8,3517.6,0.04222126]
[1718982453138,2.27408,3517.9,3517.8,0.04221338]
[1718982453342,2.27408,3517.9,3516.7,2.2748]
[1718982453746,2.27408,3517.9,3516.8,0.0421763]
[1718982453966,2.27408,3517.9,3517.4,2.27435]
[1718982454165,2.27415,3517.8,3517.4,2.27435]
[1718982454367,2.27415,3517.8,3517.5,0.04216204]
[1718982455596,5.27415,3517.8,3517.5,0.04216204]
[1718982455801,5.27403,3518.0,3517.6,2.27425]
[1718982456162,5.27403,3518.0,3517.7,0.04217744]
[1718982456397,5.27403,3518.0,3517.6,2.27425]
[1718982456596,2.27408,3517.9,3517.8,0.0421735]
[1718982456811,2.27414,3517.8,3517.7,0.04217744]
[1718982457021,3.0,3518.0,3516.6,2.27489]
[1718982457308,2.27445,3517.4,3517.0,2.27461]
[1718982457620,2.27445,3517.4,3517.1,2.27459]
[1718982457802,2.27432,3517.6,3517.2,2.27451]
[1718982457967,5.27432,3517.6,3517.2,2.27451]
[1718982458304,5.27432,3517.6,3517.1,2.27459]
[1718982458305,2.27434,3517.5,3517.1,2.27459]
[1718982458468,2.27434,3517.5,3516.5,2.4138]
[1718982458469,2.27475,3516.9,3516.6,2.27491]
[1718982458659,2.27475,3516.9,3516.5,2.27497]
[1718982458924,2.27465,3517.1,3516.4,2.27504]
[1718982459092,2.27468,3517.0,3516.5,2.27493]
[1718982459293,2.27468,3517.0,3516.6,2.2749]
[1718982460412,2.27468,3517.0,3516.7,2.27484]
[1718982460627,3.0,3517.6,3516.9,2.27467]
[1718982460784,3.0,3517.6,3517.0,2.27464]
[1718982460785,2.2744,3517.4,3517.0,2.27464]
[1718982460981,2.27449,3517.3,3517.0,2.27464]
[1718982461319,2.27473,3516.9,3516.4,2.27504]
[1718982461551,2.27474,3516.9,3516.4,2.27504]
[1718982461846,2.27474,3516.9,3516.6,2.27492]
[1718982462597,2.27474,3516.9,3516.5,2.27497]
[1718982463000,2.2748,3516.8,3516.5,2.27498]
[1718982463232,2.27492,3516.6,3516.0,2.27531]
[1718982463539,2.275,3516.5,3516.1,2.27523]
[1718982463740,2.27478,3516.9,3516.2,2.27517]
[1718982463922,2.27497,3516.6,3516.2,2.27517]
[1718982464421,2.27499,3516.5,3516.2,2.27517]
[1718982465903,2.27492,3516.6,3516.3,2.27511]
[1718982466128,2.27491,3516.7,3516.3,2.27507]
[1718982466313,2.2748,3516.8,3516.3,2.27507]
[1718982466314,2.27493,3516.6,3516.3,2.27507]
[1718982466731,2.27493,3516.6,3516.4,0.04272744]
[1718982466935,2.27493,3516.6,3516.3,2.27507]
[1718982467245,3.0,3517.1,3516.6,2.27491]
[1718982467446,0.74229929,3517.0,3516.9,2.27468]
[1718982467746,5.2744,3517.4,3516.9,2.27468]
[1718982467747,3.0,3517.4,3517.0,2.27466]
[1718982468041,9.67429,3517.6,3517.2,2.27453]
[1718982468198,2.27441,3517.4,3517.1,2.31721004]
[1718982468394,2.27441,3517.4,3517.1,2.27459]
[1718982468642,2.27441,3517.4,3517.2,0.0426161]
[1718982468838,2.27435,3517.5,3517.2,0.0426161]
[1718982469071,0.74226442,3517.4,3517.2,0.0426161]
[1718982469621,2.27418,3517.8,3517.2,0.0426161]
[1718982469622,2.27419,3517.8,3517.4,2.27439]
[1718982469958,2.27419,3517.8,3517.5,0.04260429]
[1718982469959,2.27423,3517.7,3517.5,0.04260429]
[1718982470172,2.27427,3517.6,3517.5,0.04260429]
[1718982470358,5.27419,3517.8,3517.2,2.27452]
[1718982470517,2.27415,3517.8,3517.3,2.27446]
[1718982471443,2.27415,3517.8,3517.1,2.27454]
[1718982471632,2.27415,3517.8,3517.3,2.27446]
[1718982471961,2.27409,3517.9,3517.4,2.31689184]
[1718982472760,2.2742,3517.8,3517.4,2.31689184]
[1718982473631,3.0,3518.0,3517.6,2.27427]
[1718982473632,2.27402,3518.0,3517.6,2.27427]
[1718982473837,2.27402,3518.0,3517.7,2.2742]
[1718982474140,5.2739,3518.2,3517.8,2.31636999]
[1718982474351,5.2739,3518.2,3517.9,2.27407]
[1718982474659,2.2739,3518.2,3517.9,2.27407]
[1718982475855,2.2739,3518.2,3517.7,2.2742]
[1718982476039,2.27396,3518.1,3517.7,2.27415]
[1718982476249,2.27396,3518.1,3517.8,2.31637999]
[1718982477659,7.35866907,3518.2,3517.8,0.04223999]
[1718982477859,2.27396,3518.1,3517.8,0.04223999]
[1718982478153,2.27396,3518.1,3517.9,0.04223605]
[1718982478459,4.35874552,3518.1,3517.7,2.27419]
[1718982478656,4.35874552,3518.1,3518.0,0.04223212]
[1718982478822,2.27396,3518.1,3517.7,2.27419]
[1718982479026,2.27396,3518.1,3518.0,0.04223212]
[1718982479027,4.35913251,3518.1,3518.0,0.04223212]
[1718982479241,4.35913251,3518.1,3517.7,2.27419]
[1718982479447,4.35913251,3518.1,3518.0,0.04223212]
[1718982479655,4.35913251,3518.1,3517.7,2.27419]
[1718982479656,2.27396,3518.1,3517.7,2.27419]
[1718982479869,4.35913251,3518.1,3518.0,0.04223212]
[1718982480028,4.35913251,3518.1,3517.7,2.27419]
[1718982480241,4.35913251,3518.1,3518.0,0.04223212]
[1718982480441,4.35913251,3518.1,3517.7,2.27419]
[1718982480685,2.27396,3518.1,3518.0,0.04223212]
[1718982480881,4.35950578,3518.1,3517.7,2.27419]
[1718982481096,2.08554578,3518.1,3518.0,0.04223212]
[1718982481300,2.08554578,3518.3,3518.2,4.54778]
[1718982481582,2.08554578,3518.5,3518.4,2.27376]
[1718982481743,3.9856342,3518.9,3518.5,2.27369]
[1718982481744,2.08554578,3518.7,3518.5,2.27369]
[1718982482184,2.08554578,3518.7,3518.6,0.04220851]
[1718982482363,2.27344,3518.9,3518.6,0.04220851]
[1718982482364,2.08554578,3518.8,3518.6,0.04220851]
[1718982482560,7.35909578,3518.8,3518.6,0.04220851]
[1718982482764,2.27356,3518.7,3518.3,2.27377]
[1718982482962,2.27357,3518.7,3518.3,2.27377]
[1718982483288,4.35811256,3518.7,3518.3,2.27377]
[1718982483645,2.27357,3518.7,3518.3,2.27377]
[1718982483849,2.27361,3518.7,3517.2,4.539]
[1718982484048,2.27381,3518.4,3517.9,2.27403]
[1718982484295,2.27387,3518.3,3517.9,2.27403]
[1718982484449,2.27389,3518.2,3517.9,2.27403]
[1718982484797,2.27389,3518.2,3517.6,2.27426]
[1718982484966,2.08454256,3518.1,3517.2,2.2645]
[1718982485153,4.35821256,3518.6,3518.2,2.27382]
[1718982485364,4.35821256,3518.6,3518.1,2.27393]
[1718982485365,2.27373,3518.5,3518.1,2.27393]
[1718982485600,2.27373,3518.5,3518.2,2.27387]
[1718982486177,5.27364,3518.6,3518.2,2.27387]
[1718982486513,2.27369,3518.5,3518.2,2.27388]
[1718982486807,7.54732,3518.6,3518.2,2.27387]
[1718982487101,5.27363,3518.6,3518.2,2.27387]
[1718982487262,2.2737,3518.5,3518.2,2.27387]
[1718982487898,5.08374105,3518.6,3518.3,2.27376]
[1718982488106,7.35739105,3518.6,3518.2,2.27386]
[1718982488267,2.27371,3518.5,3518.2,2.27386]
[1718982488465,5.08374105,3518.6,3518.2,2.27386]
[1718982488466,7.35738105,3518.6,3518.2,2.27386]
[1718982488975,5.27364,3518.6,3518.3,2.27381]
[1718982489178,7.35707868,3518.6,3518.3,2.27381]
[1718982489385,2.2737,3518.5,3518.0,2.274]
[1718982490337,0.48571015,3518.4,3518.3,2.27382]
[1718982490480,7.54706,3518.8,3518.4,2.2737]
[1718982490680,0.48560841,3518.7,3518.4,2.2737]
[1718982490862,0.48560841,3518.7,3518.6,2.27363]
[1718982491066,2.27339,3519.0,3518.7,2.27356]
[1718982491395,0.48554437,3518.9,3518.7,2.27356]
[1718982491598,2.75898437,3518.9,3518.8,0.04157575]
[1718982491816,2.75898437,3518.9,3518.6,2.27361]
[1718982492002,0.48554437,3518.8,3518.6,2.27361]
[1718982492179,0.48554437,3518.8,3518.7,2.31513968]
[1718982492613,0.48554437,3518.9,3518.7,2.31513968]
[1718982492916,0.48554437,3518.9,3518.7,2.27356]
[1718982493415,0.48554437,3518.9,3518.6,2.27361]
[1718982493613,2.75897437,3518.9,3518.8,0.04157575]
[1718982493812,2.75897437,3518.9,3518.6,2.27361]
[1718982494027,0.48554437,3518.8,3518.6,2.27361]
[1718982494180,0.48554437,3518.8,3518.7,0.04157968]
[1718982494634,5.27325,3519.2,3518.8,2.2735]
[1718982494844,0.48561503,3519.1,3518.8,2.2735]
[1718982495493,0.48561503,3519.1,3518.9,2.27339]
[1718982496799,0.48561503,3519.1,3518.2,2.27387]
[1718982497096,0.48561503,3519.1,3518.9,2.27342]
[1718982497298,0.48561503,3519.1,3518.6,2.27357]
[1718982497299,2.27337,3519.0,3518.6,2.27357]
[1718982497504,3.0,3519.3,3518.6,2.27357]
[1718982497713,2.27331,3519.1,3518.8,2.2735]
[1718982497899,0.48564245,3519.0,3518.8,2.2735]
[1718982498301,2.27325,3519.2,3518.8,2.2735]
[1718982498627,2.27349,3518.9,3518.4,2.27373]
[1718982498826,2.27349,3518.9,3518.6,2.27362]
[1718982498987,4.54667,3519.1,3518.7,2.27355]
[1718982499324,2.75903593,3519.0,3518.7,2.27355]
[1718982499511,2.27338,3519.0,3518.6,2.27361]
[1718982500127,2.27331,3519.1,3518.2,2.27383]
[1718982500128,2.27347,3518.9,3518.2,2.27383]
[1718982500325,2.27347,3518.9,3518.4,2.2737]
[1718982500326,2.27357,3518.7,3518.4,2.2737]
[1718982500722,2.27337,3519.0,3518.4,2.27375]
[1718982501034,2.7591143,3518.9,3518.5,2.27364]
[1718982501198,2.27352,3518.8,3518.2,2.27384]
[1718982501395,2.27375,3518.5,3518.1,2.27394]
[1718982501622,2.27375,3518.5,3518.2,2.27388]
[1718982501937,2.27381,3518.4,3518.0,2.27401]
[1718982502424,2.27371,3518.5,3518.1,2.2739]
[1718982502606,2.27371,3518.5,3517.6,2.4346]
[1718982502789,2.27352,3518.8,3518.3,2.27376]
[1718982503202,2.27363,3518.6,3518.3,2.27376]
[1718982503403,2.27374,3518.5,3518.4,0.04012835]
[1718982503601,2.27374,3518.5,3518.1,2.27395]
[1718982504117,2.27363,3518.6,3518.3,2.2738]
[1718982504283,2.27372,3518.5,3518.4,0.04015822]
[1718982504485,2.27372,3518.5,3518.0,2.27401]
[1718982504486,2.27372,3518.5,3518.0,2.274]
[1718982504688,2.27372,3518.5,3518.1,0.04017003]
[1718982504995,2.27383,3518.3,3518.1,0.04017003]
[1718982505194,2.27383,3518.3,3518.0,2.274]
[1718982505519,2.27383,3518.3,3518.1,0.04017999]
[1718982506126,1.94383,3518.3,3518.1,0.04017999]
[1718982507503,1.94383,3518.3,3517.8,2.27414]
[1718982507830,2.27391,3518.2,3517.9,2.31426454]
[1718982508132,2.08015731,3518.8,3517.9,2.31426454]
[1718982508335,2.08015731,3518.8,3518.0,2.274]
[1718982508336,2.27383,3518.3,3518.0,2.274]
[1718982508626,2.27389,3518.2,3518.0,0.04018061]
[1718982508931,2.27378,3518.4,3518.1,2.27395]
[1718982509350,3.0,3518.6,3517.6,2.4346]
[1718982509515,5.2735,3518.8,3518.3,2.27381]
[1718982509713,2.27363,3518.6,3518.4,0.04016486]
[1718982509918,2.27345,3518.9,3518.4,2.27369]
[1718982510160,0.48562779,3518.8,3518.7,2.27356]
[1718982510304,3.0,3519.2,3518.6,2.27359]
[1718982510667,2.08101567,3519.6,3519.2,2.27324]